bitfinex-derivatives/quotes_ETHF0:USTF0_20250702
["timestamp","ask_amount","ask_price","bid_price","bid_amount"]
[1751479400179,41.32584182,2569.8,2569.7,3.1132]
[1751479404079,40.03374182,2569.8,2569.7,3.1132]
[1751479404275,0.97832182,2569.8,2569.7,11.7360461]
[1751479404475,37.6658,2570.2,2570.1,0.77783]
[1751479404783,0.77783,2570.1,2570.0,8.6227461]
[1751479404983,1.75828901,2570.1,2570.0,7.8448961]
[1751479405376,36.888,2570.2,2570.0,7.8448961]
[1751479405581,36.888,2570.3,2570.2,0.77777]
[1751479405774,37.86816237,2570.3,2570.1,0.77781]
[1751479405975,0.98016237,2570.2,2570.1,0.77783]
[1751479406683,0.38584845,2570.6,2570.5,0.77771]
[1751479406884,0.38584845,2570.6,2570.5,8.6226061]
[1751479407178,2.29346046,2571.2,2570.6,1.94415]
[1751479407379,0.97827735,2571.1,2571.0,0.77756]
[1751479407579,0.77752,2571.1,2571.0,8.6224261]
[1751479407783,0.77752,2571.1,2571.0,7.8448961]
[1751479408081,0.77752,2571.1,2570.7,11.3109161]
[1751479408082,0.9782815,2571.1,2570.7,11.3109161]
[1751479408281,0.77762,2570.8,2570.7,1.3377]
[1751479409484,0.77765,2570.7,2570.6,1.4498]
[1751479409678,0.77765,2570.7,2570.4,1.3377]
[1751479409878,1.3888,2571.0,2570.4,1.3377]
[1751479409879,3.33273,2571.0,2570.4,1.3377]
[1751479410085,0.77769,2570.6,2570.4,1.3377]
[1751479410584,1.3888,2571.0,2570.4,2.11541]
[1751479410785,0.77765,2570.7,2570.4,2.11541]
[1751479411083,0.77765,2570.7,2570.5,0.77771]
[1751479411283,0.77765,2570.7,2570.4,1.3377]
[1751479411686,0.77765,2570.7,2570.4,2.11542]
[1751479411882,0.77768,2570.6,2570.4,9.16344796]
[1751479412083,0.77766,2570.7,2570.4,9.16344796]
[1751479412285,1.3888,2571.0,2570.4,8.38572796]
[1751479412483,0.97527351,2570.9,2570.8,0.77762]
[1751479412683,37.65455,2571.1,2570.8,0.77762]
[1751479412984,0.77765,2570.7,2570.6,1.4269]
[1751479413180,0.77776,2570.4,2570.2,0.77779]
[1751479413479,1.4595,2570.6,2570.1,7.82582796]
[1751479413680,0.77775,2570.4,2570.1,7.82583796]
[1751479413880,0.77778,2570.3,2570.1,7.82583796]
[1751479414081,0.77789,2569.9,2569.8,1.4269]
[1751479414280,0.7779,2569.9,2569.7,3.1132]
[1751479414480,0.77792,2569.8,2569.7,3.1132]
[1751479415182,38.99645,2570.1,2569.8,0.77792]
[1751479415388,0.77786,2570.0,2569.8,0.77792]
[1751479415787,42.2595,2570.3,2569.9,0.77787]
[1751479416085,0.77784,2570.1,2569.7,10.95840849]
[1751479416286,1.4595,2570.3,2569.8,1.4403]
[1751479416489,0.77779,2570.3,2570.0,7.84520849]
[1751479416683,0.77776,2570.4,2570.2,0.77778]
[1751479416883,0.77776,2570.4,2570.3,0.77777]
[1751479417085,1.75321918,2570.4,2570.3,0.77777]
[1751479417689,0.77772,2570.5,2570.4,0.77772]
[1751479417883,0.77774,2570.4,2570.3,0.77775]
[1751479418490,0.77773,2570.5,2570.4,0.77773]
[1751479418982,0.77777,2570.3,2570.2,0.77778]
[1751479419588,0.7778,2570.2,2570.1,1.3863]
[1751479420782,36.872,2570.8,2570.2,0.77777]
[1751479420983,2.91959511,2570.7,2570.3,0.77775]
[1751479421287,0.77772,2570.5,2570.3,0.77775]
[1751479421488,1.3325,2570.8,2570.2,1.94448]
[1751479421694,1.75275182,2570.7,2570.4,7.84520849]
[1751479421987,0.77763,2570.8,2570.7,0.77764]
[1751479422196,0.77765,2570.7,2570.6,0.77766]
[1751479422491,0.77763,2570.8,2570.7,0.77764]
[1751479422793,2.11128,2571.0,2570.9,0.77759]
[1751479422991,0.97488448,2571.0,2570.9,0.77759]
[1751479423187,0.97488448,2571.0,2570.7,7.84520849]
[1751479423492,0.97488448,2571.0,2570.9,0.77759]
[1751479423493,0.77757,2571.0,2570.9,0.77759]
[1751479424087,0.77757,2571.0,2570.9,0.77756]
[1751479424493,0.77755,2571.1,2570.9,0.77758]
[1751479424693,1.3325,2571.2,2571.1,0.77752]
[1751479424694,2.11001,2571.2,2571.1,0.77752]
[1751479424986,0.77753,2571.1,2570.8,3.32983]
[1751479425186,52.08347025,2571.5,2570.8,2.7561]
[1751479425386,0.77748,2571.3,2571.2,0.77749]
[1751479425584,0.77746,2571.4,2571.3,0.77746]
[1751479425793,0.77748,2571.3,2571.2,0.77748]
[1751479425988,0.77746,2571.4,2571.0,1.94389]
[1751479426189,0.77745,2571.4,2571.3,0.77744]
[1751479426486,12.8781,2571.5,2571.2,0.77747]
[1751479426691,12.8781,2571.5,2571.1,0.7775]
[1751479426995,0.77752,2571.2,2571.1,0.77752]
[1751479427494,0.77753,2571.1,2571.0,0.77754]
[1751479427686,0.77753,2571.1,2571.0,0.77755]
[1751479427687,0.77754,2571.1,2571.0,0.77755]
[1751479428193,12.8781,2571.5,2571.1,0.77752]
[1751479428495,0.77748,2571.3,2571.2,0.77749]
[1751479428793,2.11715,2571.4,2571.3,0.77746]
[1751479429196,36.861,2571.5,2571.3,0.77746]
[1751479429197,3.47458,2571.6,2571.3,7.84520849]
[1751479429395,2.12747,2571.6,2571.5,0.7774]
[1751479429597,3.10083789,2571.6,2571.4,0.77741]
[1751479429895,0.7774,2571.5,2571.4,0.77741]
[1751479430094,0.7774,2571.5,2571.4,0.77743]
[1751479430289,1.3501,2571.6,2571.3,7.84520849]
[1751479430494,0.7774,2571.6,2571.3,7.84520849]
[1751479430693,0.7774,2571.6,2571.5,0.7774]
[1751479430896,0.7774,2571.5,2571.4,0.77741]
[1751479431194,0.7774,2571.5,2571.4,0.77742]
[1751479431394,0.77739,2571.6,2571.5,0.7774]
[1751479431596,0.7774,2571.5,2571.4,0.77742]
[1751479431795,0.7774,2571.5,2571.3,8.62264849]
[1751479431996,2.7916,2571.8,2571.3,7.84520849]
[1751479432190,1.75033957,2571.7,2571.5,0.77737]
[1751479432390,1.75034957,2571.6,2571.5,0.77737]
[1751479432594,1.75034957,2571.6,2571.4,0.77741]
[1751479432790,0.77737,2571.6,2571.4,0.77742]
[1751479433003,0.77737,2571.6,2571.5,0.7774]
[1751479433196,0.97323674,2571.6,2571.3,7.84520849]
[1751479433408,1.4519,2571.8,2571.6,0.77736]
[1751479433599,2.22923,2571.8,2571.7,0.77734]
[1751479433798,3.20271514,2571.8,2571.7,0.77734]
[1751479434099,1.4046,2572.0,2571.9,0.77728]
[1751479434300,0.97345547,2572.0,2571.9,0.77728]
[1751479434500,0.77724,2572.1,2572.0,0.77725]
[1751479434800,1.75080278,2572.1,2571.9,0.77727]
[1751479435101,1.75080278,2572.1,2572.0,0.77724]
[1751479435102,0.77724,2572.1,2572.0,0.77724]
[1751479435297,39.14346046,2572.8,2571.4,1.3744]
[1751479435497,2.8541,2572.4,2572.0,0.77725]
[1751479435702,0.77721,2572.2,2572.0,0.77723]
[1751479435894,2.8541,2572.4,2571.9,0.77727]
[1751479436095,0.77731,2571.8,2571.7,1.3707]
[1751479436302,0.77735,2571.7,2571.5,8.62258849]
[1751479436603,0.77732,2571.8,2571.5,7.84520849]
[1751479436794,0.77732,2571.8,2571.5,8.62258849]
[1751479437302,0.77733,2571.8,2571.6,1.74946]
[1751479437496,0.77734,2571.7,2571.6,0.9721]
[1751479437696,0.77733,2571.8,2571.6,1.74946]
[1751479437903,0.77729,2571.9,2571.7,0.77733]
[1751479438096,2.20467,2572.0,2571.7,0.77733]
[1751479438297,2.20467,2572.0,2571.8,3.88791]
[1751479438498,0.77724,2572.1,2571.9,7.04101186]
[1751479438799,36.849,2572.2,2571.9,7.04101186]
[1751479439001,2.8453,2572.4,2571.9,7.04101186]
[1751479439201,2.8453,2572.4,2572.0,2.8112]
[1751479439601,0.77722,2572.1,2572.0,2.8112]
[1751479440102,2.8453,2572.4,2572.0,2.8112]
[1751479440296,2.32594546,2572.7,2572.2,7.04101186]
[1751479440297,1.94261,2572.7,2572.2,7.04101186]
[1751479440602,4.82345,2572.7,2572.2,7.04101186]
[1751479440809,0.77716,2572.3,2572.2,7.04101186]
[1751479441000,2.8808,2572.7,2572.2,7.04101186]
[1751479441194,0.77716,2572.4,2572.2,7.81818186]
[1751479441502,0.77715,2572.4,2572.2,7.81819186]
[1751479441695,0.77709,2572.6,2572.2,7.04101186]
[1751479441898,2.8808,2572.7,2572.0,2.8112]
[1751479441899,1.434,2572.7,2572.5,7.04101186]
[1751479442098,0.37961691,2573.1,2573.0,0.77695]
[1751479442307,0.37961691,2573.1,2573.0,7.81796186]
[1751479442602,45.0181,2573.7,2573.0,7.04101186]
[1751479442802,0.7769,2573.2,2573.0,7.81796186]
[1751479442995,45.0181,2573.7,2573.1,0.77692]
[1751479442996,0.77688,2573.3,2573.1,0.77692]
[1751479443198,0.77685,2573.4,2573.0,7.04101186]
[1751479443394,1.4468,2573.5,2573.0,7.04101186]
[1751479443595,0.77692,2573.1,2573.0,7.04101186]
[1751479443798,1.94216,2573.3,2572.7,1.4065]
[1751479444000,1.4174,2573.0,2572.1,8.51551186]
[1751479444206,1.4174,2573.0,2572.4,7.04101186]
[1751479444207,1.4141,2572.9,2572.4,7.04101186]
[1751479444395,1.4174,2572.8,2572.4,7.04101186]
[1751479444603,0.7771,2572.5,2572.4,7.04101186]
[1751479444903,0.77709,2572.6,2572.4,7.04101186]
[1751479445301,0.77709,2572.6,2572.4,7.81814186]
[1751479445502,0.7771,2572.5,2572.4,7.04101186]
[1751479445703,0.7771,2572.5,2572.2,1.4601]
[1751479445704,0.77716,2572.3,2572.2,8.50111186]
[1751479446202,3.35998,2572.8,2572.2,8.50111186]
[1751479446505,0.77707,2572.6,2572.5,7.04101186]
[1751479447800,0.77716,2572.3,2572.2,8.50111186]
[1751479447997,1.94254,2572.8,2572.2,8.50111186]
[1751479448307,0.77709,2572.6,2572.4,7.81814186]
[1751479448505,0.7771,2572.5,2572.4,7.04101186]
[1751479448800,0.77709,2572.6,2572.4,7.81813186]
[1751479449105,0.77709,2572.6,2572.5,1.4409]
[1751479449305,3.36240351,2572.9,2572.5,2.218]
[1751479449501,0.77707,2572.6,2572.5,1.4409]
[1751479449805,1.94263,2572.7,2572.2,8.50111186]
[1751479450002,0.77715,2572.4,2572.2,8.50111186]
[1751479450204,0.77716,2572.3,2572.2,8.50111186]
[1751479450602,0.77716,2572.3,2572.2,9.27830186]
[1751479450804,0.77716,2572.3,2572.2,10.67409186]
[1751479451307,0.77716,2572.3,2572.2,9.89691186]
[1751479451703,0.77716,2572.3,2572.2,10.67410186]
[1751479452005,0.77716,2572.3,2572.2,9.89691186]
[1751479452796,0.77716,2572.3,2572.2,10.67410186]
[1751479453006,0.77715,2572.4,2572.3,0.77716]
[1751479453199,3.29072,2572.7,2572.3,1.4296]
[1751479453200,0.77706,2572.7,2572.3,1.4296]
[1751479453397,0.00583351,2572.9,2572.6,7.04101186]
[1751479453597,0.77701,2572.8,2572.7,1.3696]
[1751479453997,0.00583351,2572.9,2572.3,1.9429]
[1751479454303,0.77704,2572.7,2572.6,7.04101186]
[1751479454905,0.77704,2572.7,2572.6,7.81808186]
[1751479455202,0.00583351,2572.9,2572.6,7.81808186]
[1751479455203,0.00583351,2572.9,2572.8,0.77701]
[1751479455602,0.00583351,2572.9,2572.8,1.4757]
[1751479455812,0.78281351,2572.9,2572.8,1.4757]
[1751479456204,0.77704,2572.7,2572.6,7.04101186]
[1751479456600,0.77708,2572.6,2572.5,0.77709]
[1751479456808,1.3365,2572.8,2572.4,0.9718]
[1751479456999,0.7771,2572.5,2572.4,0.9718]
[1751479457502,0.7771,2572.5,2572.1,0.77721]
[1751479457503,1.4125,2572.7,2572.3,0.77714]
[1751479457705,0.77713,2572.4,2572.2,7.81818186]
[1751479457905,1.4125,2572.7,2572.2,7.04101186]
[1751479458108,0.77712,2572.5,2572.2,7.81818186]
[1751479458408,0.77713,2572.4,2572.2,7.04101186]
[1751479458605,1.94274,2572.6,2571.9,7.04101186]
[1751479458800,1.94284,2572.4,2571.9,1.4009]
[1751479459008,2.14879,2572.3,2571.9,1.4009]
[1751479459307,0.77709,2572.6,2572.3,0.77715]
[1751479459506,1.72938116,2572.5,2572.4,7.04101186]
[1751479459707,0.77714,2572.4,2572.2,7.81820186]
[1751479459907,1.3716,2572.6,2572.2,7.04101186]
[1751479460108,0.95228662,2572.5,2572.2,7.04101186]
[1751479460309,0.95228662,2572.4,2572.3,0.77714]
[1751479460510,1.4125,2572.7,2572.2,7.04101186]
[1751479460718,0.95259063,2572.6,2572.5,7.81810186]
[1751479461200,0.77703,2572.8,2572.6,0.77706]
[1751479461601,14.2461,2573.0,2572.5,7.04101186]
[1751479461801,0.95346245,2572.8,2572.7,0.77703]
[1751479462004,2.29346046,2573.5,2572.6,11.414]
[1751479462202,3.46514403,2573.8,2573.2,7.04101186]
[1751479462203,2.29346046,2573.6,2573.2,7.04101186]
[1751479462407,3.72776046,2573.5,2572.8,7.04101186]
[1751479462602,2.29346046,2573.4,2572.6,1.4202]
[1751479462808,0.77706,2572.7,2572.5,0.00583351]
[1751479463004,0.77707,2572.6,2572.5,0.00583351]
[1751479463412,16.414,2572.6,2571.9,0.972]
[1751479463613,38.75666,2572.7,2571.9,0.972]
[1751479463614,0.77723,2572.1,2571.9,0.972]
[1751479464212,4.154,2572.5,2571.9,0.972]
[1751479464413,4.154,2572.5,2572.1,7.81822186]
[1751479464716,0.7771,2572.5,2572.4,7.04101186]
[1751479464913,1.94241,2573.0,2572.4,7.04101186]
[1751479464914,0.77708,2572.6,2572.4,7.04101186]
[1751479465210,3.64016046,2572.9,2572.4,7.04101186]
[1751479465414,3.64016046,2572.9,2572.7,7.04101186]
[1751479465610,4.41716046,2572.9,2572.7,7.04101186]
[1751479465806,3.64016046,2572.9,2572.7,7.81804186]
[1751479466006,2.29346046,2573.0,2572.8,0.77701]
[1751479466307,2.29346046,2573.0,2572.9,0.77698]
[1751479466508,2.29346046,2573.0,2572.7,7.04101186]
[1751479466509,0.78277351,2573.1,2572.8,0.77699]
[1751479466711,0.77696,2573.0,2572.8,0.77699]
[1751479467213,0.77701,2572.8,2572.7,7.04101186]
[1751479468015,0.77712,2572.5,2572.3,7.81817186]
[1751479468312,2.15295,2572.7,2572.4,0.77713]
[1751479468510,0.77707,2572.6,2572.3,7.81815186]
[1751479468708,0.77707,2572.6,2572.3,7.04101186]
[1751479469013,1.3759,2572.7,2572.3,7.04101186]
[1751479469218,1.3759,2572.7,2572.1,7.04101186]
[1751479469417,0.77719,2572.2,2572.1,7.04101186]
[1751479469711,0.77719,2572.2,2572.0,2.8244]
[1751479469915,1.94279,2572.5,2572.0,2.8244]
[1751479469916,0.77722,2572.1,2572.0,2.8244]
[1751479470321,0.77719,2572.3,2572.0,2.8244]
[1751479470519,0.7772,2572.2,2572.0,3.60164]
[1751479471214,1.3759,2572.5,2572.0,2.8244]
[1751479471411,0.77716,2572.4,2572.3,7.04101186]
[1751479471609,0.77722,2572.2,2572.1,7.04101186]
[1751479472009,0.77717,2572.3,2572.1,7.81822186]
[1751479472310,0.77717,2572.3,2572.1,7.04101186]
[1751479472508,0.77719,2572.2,2572.1,7.04101186]
[1751479472710,0.77718,2572.3,2572.1,7.04101186]
[1751479472913,1.3759,2572.5,2572.1,7.81822186]
[1751479473109,0.77717,2572.3,2572.1,7.81822186]
[1751479473610,0.77721,2572.2,2572.0,3.60164]
[1751479473815,0.77718,2572.3,2572.1,7.04101186]
[1751479474111,1.4623,2572.8,2572.1,7.04101186]
[1751479474317,0.95150343,2572.7,2572.6,0.77707]
[1751479474510,0.95150343,2572.7,2572.6,7.81808186]
[1751479474913,0.00583351,2573.1,2573.0,0.77695]
[1751479475114,1.73405815,2573.1,2572.9,0.77696]
[1751479475315,0.95128464,2573.0,2572.9,0.77696]
[1751479475517,0.95128464,2573.0,2572.9,7.81797186]
[1751479475718,0.95128464,2573.0,2572.9,9.24727186]
[1751479476119,0.77698,2572.9,2572.8,1.4584]
[1751479476320,1.73950894,2572.9,2572.8,1.4584]
[1751479476521,0.77698,2572.9,2572.8,1.4584]
[1751479477521,0.00583351,2573.1,2572.8,2.23539]
[1751479477714,0.77698,2572.9,2572.8,1.4584]
[1751479477913,1.73911136,2572.9,2572.8,1.4584]
[1751479478113,0.77707,2572.6,2572.5,12.30169186]
[1751479478320,0.77706,2572.7,2572.5,12.30169186]
[1751479478517,0.77706,2572.7,2572.6,0.77707]
[1751479478827,1.94241,2573.0,2572.5,11.52461186]
[1751479478828,0.77707,2572.6,2572.5,12.30169186]
[1751479479021,0.77704,2572.7,2572.6,0.77706]
[1751479479323,0.77707,2572.6,2572.5,4.4836]
[1751479479524,0.77705,2572.7,2572.5,5.26069]
[1751479479725,0.77707,2572.6,2572.5,3.1098]
[1751479480223,1.73934122,2572.6,2572.5,3.1098]
[1751479481029,0.96227122,2572.6,2572.5,3.8869]
[1751479481330,0.96222995,2572.6,2572.5,10.92791186]
[1751479481728,0.77698,2572.9,2572.8,0.77701]
[1751479482029,0.96184696,2572.9,2572.8,0.77701]
[1751479482226,0.77701,2572.8,2572.6,0.77705]
[1751479482425,0.9618642,2572.7,2572.6,0.77705]
[1751479483031,1.46843351,2573.1,2572.6,1.94268]
[1751479483231,1.46843351,2573.1,2572.8,7.81799186]
[1751479483232,1.73874588,2573.0,2572.8,7.81799186]
[1751479483432,0.96178588,2572.9,2572.8,7.81802186]
[1751479483633,0.96178588,2572.9,2572.8,0.77701]
[1751479483833,0.77698,2572.9,2572.8,7.81802186]
[1751479484033,0.77698,2572.9,2572.8,7.04101186]
[1751479484233,0.77704,2572.7,2572.6,7.81806186]
[1751479484834,2.15723,2572.8,2572.6,7.04101186]
[1751479485130,2.15723,2572.8,2572.7,0.77704]
[1751479485131,0.77702,2572.8,2572.7,0.77704]
[1751479485427,1.7388023,2572.8,2572.6,7.81806186]
[1751479485632,3.41074351,2573.1,2572.6,7.81806186]
[1751479485834,0.77703,2572.8,2572.7,0.77704]
[1751479486134,1.73880491,2572.8,2572.7,0.77704]
[1751479486332,0.77704,2572.7,2572.6,7.81806186]
[1751479486632,0.77703,2572.8,2572.7,0.77703]
[1751479486833,1.73889743,2572.8,2572.7,0.77703]
[1751479487633,0.77707,2572.6,2572.5,3.1098]
[1751479487932,1.73898036,2572.6,2572.5,3.1098]
[1751479488135,0.96191036,2572.6,2572.5,10.15081186]
[1751479488324,0.77707,2572.6,2572.5,10.15081186]
[1751479489737,1.73921577,2572.6,2572.5,3.1098]
[1751479496642,1.73921577,2572.6,2572.5,2.72395155]
[1751479497044,0.77716,2572.3,2572.2,0.9719]
[1751479497242,1.73997593,2572.3,2572.2,0.9719]
[1751479500442,0.96281593,2572.3,2572.2,1.74909]
[1751479500943,0.77716,2572.3,2572.2,1.74909]
[1751479501137,0.77716,2572.3,2572.2,0.9719]
[1751479501335,0.77716,2572.3,2572.2,1.74909]
[1751479501744,0.77716,2572.3,2572.2,0.9719]
[1751479502245,1.74000553,2572.3,2572.2,0.9719]
[1751479503238,6.74000553,2572.3,2572.2,0.9719]
[1751479503444,41.37890553,2572.3,2572.2,0.9719]
[1751479504448,1.74000553,2572.3,2572.2,0.9719]
[1751479504651,0.96284553,2572.3,2572.2,0.9719]
[1751479504944,0.96284553,2572.3,2572.2,1.74909]
[1751479505246,0.77709,2572.6,2572.5,0.7771]
[1751479505442,0.96254252,2572.6,2572.2,3.9231]
[1751479505746,0.77707,2572.6,2572.4,7.81812186]
[1751479506043,0.96226557,2572.5,2572.4,7.81807186]
[1751479506244,0.77698,2572.7,2572.6,0.777]
[1751479506444,1.73494881,2572.7,2572.6,0.777]
[1751479506643,1.73494881,2572.7,2572.5,0.77701]
[1751479506947,0.95796881,2572.6,2572.5,0.77701]
[1751479507747,1.73496881,2572.6,2572.5,0.77701]
[1751479507948,1.73496881,2572.6,2572.4,7.04101186]
[1751479507949,0.77703,2572.5,2572.4,7.04101186]
[1751479508143,0.77709,2572.3,2572.2,2.4331]
[1751479508448,0.77709,2572.3,2572.2,0.9719]
[1751479508647,1.7340211,2572.3,2572.2,0.9719]
[1751479509247,40.0373211,2572.3,2572.2,0.9719]
[1751479510840,1.7340211,2572.3,2572.2,0.9719]
[1751479511043,0.9569311,2572.3,2572.2,8.79003186]
[1751479511251,0.77693,2572.9,2572.7,0.77695]
[1751479511452,0.95723955,2572.8,2572.7,0.77694]
[1751479511751,1.73417955,2572.8,2572.6,7.81798186]
[1751479511949,0.77704,2572.5,2572.4,0.77705]
[1751479512144,0.777,2572.6,2572.5,0.77703]
[1751479512451,1.7343194,2572.6,2572.5,0.77703]
[1751479512652,0.77706,2572.4,2572.3,3.66718]
[1751479512952,2.8422,2572.7,2572.4,0.77706]
[1751479513147,0.77706,2572.4,2572.3,2.8901]
[1751479513345,2.26069,2572.7,2572.6,0.777]
[1751479513551,0.95771286,2572.7,2572.6,0.777]
[1751479513947,1.73468286,2572.7,2572.6,0.777]
[1751479515053,0.95771286,2572.7,2572.3,2.8901]
[1751479515253,0.77706,2572.4,2572.3,2.8901]
[1751479515455,1.73477286,2572.4,2572.3,2.8901]
[1751479515757,0.77709,2572.3,2572.2,0.9719]
[1751479515953,5.96010286,2572.3,2572.2,0.9719]
[1751479517156,8.25356332,2572.3,2572.2,0.9719]
[1751479517455,10.96010286,2572.3,2572.2,0.9719]
[1751479517657,51.76010286,2572.3,2572.2,0.9719]
[1751479519257,54.08059063,2572.3,2572.2,0.9719]
[1751479519455,51.76010286,2572.3,2572.2,0.9719]
[1751479520559,0.77715,2572.1,2572.0,0.00583351]
[1751479520760,12.18715,2572.1,2572.0,0.00583351]
[1751479520961,13.14486286,2572.1,2572.0,0.00583351]
[1751479521158,14.50116286,2572.1,2572.0,0.00583351]
[1751479523362,51.30716286,2572.1,2572.0,0.00583351]
[1751479527262,51.30716286,2572.1,2572.0,3.51e-06]
[1751479527461,0.77718,2572.0,2571.9,1.06825351]
[1751479527763,0.77721,2571.9,2571.8,3.51e-06]
[1751479528059,1.9434,2571.4,2570.5,4.50935013]
[1751479528255,40.53211286,2571.3,2570.6,2.8194]
[1751479528461,0.77759,2570.7,2570.6,2.8194]
[1751479528962,36.805,2570.8,2570.6,3.597]
[1751479528963,37.58256,2570.8,2570.6,3.597]
[1751479529258,0.00583351,2570.9,2570.8,0.77753]
[1751479529463,0.00583351,2570.9,2570.8,7.81854186]
[1751479529665,36.804,2571.3,2571.2,0.7774]
[1751479529959,0.95500283,2571.3,2571.2,12.81841186]
[1751479530165,2.31947718,2572.2,2571.5,1.9433]
[1751479530355,2.31947718,2572.3,2572.0,7.04101186]
[1751479530562,36.803,2572.4,2572.0,7.04101186]
[1751479530761,0.77709,2572.3,2572.1,0.77714]
[1751479530962,0.77709,2572.3,2572.2,1.4831]
[1751479532359,46.647,2572.6,2572.2,1.4831]
[1751479532566,0.77704,2572.5,2572.2,1.4831]
[1751479532766,36.805,2572.4,2572.2,1.4831]
[1751479532968,37.58202,2572.6,2572.3,1.3878]
[1751479533163,37.58202,2572.6,2572.4,7.04101186]
[1751479533363,0.77703,2572.5,2572.4,7.04101186]
[1751479533557,0.77706,2572.4,2572.3,1.3878]
[1751479533963,0.77709,2572.3,2572.2,1.4831]
[1751479534869,0.77709,2572.3,2571.8,0.972]
[1751479534870,0.77721,2571.9,2571.8,0.972]
[1751479535068,37.57921,2571.9,2571.8,0.972]
[1751479535367,0.77727,2571.7,2571.6,1.45]
[1751479535968,0.77736,2571.4,2571.3,1.4597]
[1751479536263,0.77748,2571.0,2570.9,2.30143013]
[1751479536461,36.801,2571.5,2570.9,1.45]
[1751479536861,0.77746,2571.1,2570.9,1.45]
[1751479537067,0.77748,2571.0,2570.9,1.45]
[1751479538272,36.8,2571.1,2570.9,6.45]
[1751479538569,0.77748,2571.0,2570.9,1.45]
[1751479538762,0.77748,2571.0,2570.9,2.22751]
[1751479538960,37.57747,2571.1,2570.9,2.22751]
[1751479539367,0.77748,2571.0,2570.9,2.22751]
[1751479539771,0.77748,2571.0,2570.9,1.45]
[1751479540167,0.77748,2571.0,2570.9,2.22751]
[1751479540574,0.77748,2571.0,2570.9,1.45]
[1751479541070,0.77748,2571.0,2570.9,2.22751]
[1751479541373,36.801,2571.1,2570.9,1.45]
[1751479541570,37.57848,2571.1,2571.0,0.77746]
[1751479541767,0.77748,2571.0,2570.9,2.22749]
[1751479542369,0.77746,2571.1,2571.0,0.77745]
[1751479542775,0.77745,2571.2,2571.1,0.77743]
[1751479542976,0.77748,2571.1,2571.0,0.77746]
[1751479543774,0.77748,2571.0,2570.9,2.22749]
[1751479544571,0.77748,2571.0,2570.9,1.45]
[1751479544974,0.77748,2571.0,2570.9,2.22751]
[1751479546173,0.77748,2571.0,2570.9,1.45]
[1751479547875,1.94378,2571.0,2570.5,3.22942]
[1751479548075,0.77756,2570.8,2570.6,1.41]
[1751479548378,0.77756,2570.8,2570.6,2.18758]
[1751479548672,0.77757,2570.7,2570.6,1.41]
[1751479548878,3.41114,2571.1,2570.6,1.41]
[1751479549077,0.77757,2570.7,2570.6,2.18759]
[1751479549469,0.77757,2570.7,2570.6,1.41]
[1751479549673,0.77757,2570.7,2570.6,2.1876]
[1751479549873,1.94371,2571.0,2570.6,2.1876]
[1751479550079,0.77757,2570.7,2570.6,2.1876]
[1751479550379,0.77756,2570.8,2570.6,2.1876]
[1751479550581,0.77753,2570.9,2570.7,0.77755]
[1751479550777,0.7776,2570.6,2570.5,0.9725]
[1751479551378,3.6271,2570.6,2570.5,0.9725]
[1751479551981,4.58080151,2570.6,2570.5,0.9725]
[1751479552176,41.37880151,2570.6,2570.5,0.9725]
[1751479553380,48.41981337,2570.6,2570.5,0.01166366]
[1751479553580,0.77775,2570.1,2570.0,1.4399]
[1751479554378,0.77775,2570.1,2569.4,4.24630013]
[1751479554379,36.796,2570.1,2569.4,0.31686224]
[1751479554578,0.77783,2569.9,2569.5,2.7938]
[1751479554883,0.77787,2569.8,2569.6,0.7779]
[1751479555183,36.799,2569.7,2569.2,3.07943013]
[1751479555482,40.11871,2569.7,2569.2,2.30143013]
[1751479555683,0.77795,2569.5,2569.1,5.90496013]
[1751479555882,0.77797,2569.4,2569.2,0.77802]
[1751479556382,0.77797,2569.4,2569.1,5.9394]
[1751479556885,0.77795,2569.5,2569.3,0.77797]
[1751479557074,36.799,2569.7,2569.4,0.77796]
[1751479557480,0.77795,2569.5,2569.4,0.77796]
[1751479557683,0.77798,2569.4,2569.3,0.77797]
[1751479558681,0.77799,2569.3,2569.2,2.1974]
[1751479558882,0.77799,2569.3,2569.2,1.4194]
[1751479559386,0.77798,2569.4,2569.3,0.77796]
[1751479560284,11.412,2570.2,2569.4,1.94492]
[1751479560483,13.35633,2570.2,2569.6,8.98577186]
[1751479560677,13.35633,2570.2,2569.7,0.77785]
[1751479560678,0.77784,2569.8,2569.7,0.77785]
[1751479560876,0.77784,2569.8,2569.3,0.77797]
[1751479560877,0.77799,2569.4,2569.3,0.77797]
[1751479561082,0.77787,2569.8,2569.7,0.77785]
[1751479561282,0.77787,2569.7,2569.6,7.81889186]
[1751479561485,3.40012,2570.5,2569.7,1.94469]
[1751479561782,0.77766,2570.4,2570.3,7.04101186]
[1751479561982,0.77766,2570.5,2570.4,0.77764]
[1751479562483,0.77762,2570.6,2570.5,0.77761]
[1751479563482,0.77763,2570.5,2569.8,7.04101186]
[1751479563682,0.77771,2570.3,2570.2,0.7777]
[1751479563878,1.3632,2570.5,2569.9,2.7344]
[1751479564080,0.77778,2570.0,2569.9,2.1485]
[1751479564388,0.77777,2570.1,2570.0,0.77776]
[1751479565288,0.77774,2570.2,2570.1,0.77772]
[1751479566183,0.77772,2570.3,2570.2,0.7777]
[1751479566389,0.77767,2570.5,2570.4,0.77765]
[1751479566789,1.77500118,2570.5,2570.4,0.77765]
[1751479566989,0.77769,2570.4,2570.3,0.77767]
[1751479567189,0.77765,2570.5,2570.4,0.77762]
[1751479567490,0.77762,2570.6,2570.5,0.77763]
[1751479567692,0.77757,2570.8,2570.7,0.77757]
[1751479567885,1.77422935,2570.8,2570.7,0.77757]
[1751479568487,0.99665935,2570.8,2570.7,7.81858186]
[1751479568687,1.77419935,2570.8,2570.7,7.81858186]
[1751479568888,0.7776,2570.7,2570.6,0.77758]
[1751479569086,1.77425935,2570.7,2570.6,0.77758]